bitfinex-derivatives/quotes_ETHF0:USTF0_20250909
["timestamp","ask_amount","ask_price","bid_price","bid_amount"]
[1757382363554,0.7209,4295.4,4295.1,0.308]
[1757382363751,0.7209,4295.4,4295.0,0.236]
[1757382364053,0.7209,4295.4,4295.3,0.2149]
[1757382364454,0.7209,4295.4,4295.3,0.5229]
[1757382365849,0.3137,4295.3,4294.8,3.2078]
[1757382366050,0.1194,4295.5,4294.9,0.4108]
[1757382366051,0.7209,4295.0,4294.9,0.4108]
[1757382366355,0.3137,4295.0,4294.9,0.4108]
[1757382366553,0.3137,4295.0,4294.9,0.7188]
[1757382366753,0.509,4295.0,4294.9,0.7188]
[1757382367164,0.7209,4295.0,4294.9,0.7188]
[1757382368558,0.8403,4295.0,4294.9,0.7188]
[1757382368862,0.7209,4294.5,4294.4,0.7188]
[1757382369062,0.8403,4294.5,4293.7,35.03422821]
[1757382369262,0.8403,4294.5,4294.1,0.308]
[1757382370060,0.8403,4294.5,4294.0,0.236]
[1757382370260,0.8403,4294.5,4294.4,0.2149]
[1757382370764,0.5266,4294.0,4293.9,0.4509]
[1757382370959,0.8403,4294.0,4293.9,0.5229]
[1757382371157,0.8403,4294.0,4293.9,0.2149]
[1757382371853,0.8403,4294.0,4293.9,0.7188]
[1757382373462,0.8403,4294.0,4293.9,0.2149]
[1757382374258,0.8403,4294.0,4293.9,0.5229]
[1757382375762,0.8403,4294.0,4293.9,0.7188]
[1757382377065,0.2968,4294.3,4293.9,0.7188]
[1757382377264,0.1194,4294.5,4294.3,0.7257]
[1757382377265,0.7093,4294.4,4294.3,0.7257]
[1757382377867,0.7093,4294.4,4294.3,0.5225]
[1757382378066,0.7093,4294.4,4294.3,0.2151]
[1757382378267,0.7093,4294.4,4293.8,1.50222821]
[1757382378571,0.7093,4294.0,4293.9,0.7257]
[1757382386759,3.2078,4294.6,4294.5,0.8477]
[1757382386971,3.2078,4294.6,4294.5,2.58592821]
[1757382388868,3.6203,4295.1,4295.0,0.4183]
[1757382389170,3.9171,4295.1,4295.0,0.7257]
[1757382389868,3.4062,4295.1,4295.0,2.34992821]
[1757382390167,0.4952,4295.4,4295.3,0.7257]
[1757382391270,0.1984,4295.4,4295.3,0.7257]
[1757382391469,3.2078,4295.6,4295.5,0.122]
[1757382391662,3.703,4295.6,4295.5,0.8477]
[1757382391870,3.9171,4295.6,4295.5,0.2151]
[1757382392064,0.4125,4295.4,4295.3,0.4511]
[1757382392264,0.7093,4295.4,4295.3,0.7585]
[1757382393563,0.4125,4294.7,4294.6,0.5225]
[1757382393764,0.7093,4294.7,4294.6,0.236]
[1757382394770,0.7093,4294.7,4294.3,0.3074]
[1757382394972,0.1267,4295.0,4293.9,35.05022821]
[1757382394973,0.4125,4294.2,4293.9,33.8554]
[1757382395168,0.4235,4294.0,4293.9,33.784]
[1757382395368,0.4235,4294.0,4293.9,34.0914]
[1757382395574,0.2968,4294.0,4293.9,34.0914]
[1757382396469,0.2968,4294.0,4293.9,35.28508737]
[1757382397069,0.4952,4294.0,4293.9,2.15538737]
[1757382397472,0.7093,4294.0,4293.9,2.15538737]
[1757382397971,0.836,4294.0,4293.9,1.91938737]
[1757382398165,0.836,4294.0,4293.9,2.15538737]
[1757382398872,0.7093,4294.0,4293.9,2.15538737]
[1757382399477,3.2078,4294.4,4294.3,0.7257]
[1757382399687,3.2078,4294.4,4294.3,1.91938737]
[1757382400278,3.2078,4294.4,4294.3,0.7257]
[1757382400279,3.4062,4294.4,4294.3,0.7257]
[1757382400577,3.9171,4294.4,4294.3,0.7257]
[1757382402481,3.9171,4294.4,4294.3,0.2151]
[1757382402782,0.2968,4294.3,4294.0,0.3074]
[1757382403080,3.6203,4294.4,4293.6,0.7257]
[1757382403081,0.7093,4293.7,4293.6,0.7257]
[1757382403281,0.7093,4293.7,4293.6,0.9617]
[1757382403583,0.2968,4294.3,4293.7,0.3074]
[1757382403775,0.7093,4294.3,4294.2,0.2151]
[1757382403975,0.4125,4294.3,4293.9,0.3074]
[1757382404277,0.836,4294.0,4293.9,0.5225]
[1757382404678,0.836,4294.0,4293.9,0.7257]
[1757382404980,0.7093,4294.0,4293.9,0.7257]
[1757382405589,0.836,4294.0,4293.9,0.7257]
[1757382405880,0.7093,4294.0,4293.9,0.7257]
[1757382407977,0.8281,4294.0,4293.9,0.7257]
[1757382408184,0.7137,4293.9,4293.8,1.40018737]
[1757382408378,0.7137,4293.9,4293.8,1.69748737]
[1757382409082,3.6194,4294.4,4294.3,0.2065]
[1757382409283,3.9215,4294.4,4294.3,0.7005]
[1757382417088,3.4048,4294.4,4294.3,0.7005]
[1757382417390,3.7069,4294.4,4294.3,0.7005]
[1757382418486,3.9215,4294.4,4294.3,0.7005]
[1757382419099,3.9215,4294.4,4294.3,0.5038]
[1757382419694,3.9215,4294.4,4294.3,0.2065]
[1757382422196,3.9215,4294.4,4294.3,0.5038]
[1757382422989,3.9215,4294.4,4294.3,0.2065]
[1757382423190,3.9215,4294.4,4293.5,0.2065]
[1757382423191,0.197,4293.6,4293.5,0.2065]
[1757382423498,0.7137,4293.6,4293.5,0.9365]
[1757382423696,0.7137,4293.6,4293.5,2.13018737]
[1757382423892,0.7137,4293.6,4293.5,1.89418737]
[1757382424196,0.7137,4293.6,4293.5,2.13018737]
[1757382426698,0.7137,4293.6,4293.5,1.89418737]
[1757382426898,0.7137,4293.6,4293.5,2.13018737]
[1757382427199,0.7137,4293.6,4293.5,1.89418737]
[1757382427395,0.7137,4293.6,4293.5,2.13018737]
[1757382429999,0.4116,4293.2,4293.1,1.67521298]
[1757382430197,0.7137,4292.7,4292.5,0.2973]
[1757382430398,0.7137,4292.7,4292.6,0.9365]
[1757382430596,0.7137,4292.7,4292.6,0.5228]
[1757382430997,0.7137,4292.7,4292.6,0.8201]
[1757382435706,0.7137,4292.7,4292.6,2.01378737]
[1757382435902,0.7137,4292.7,4292.6,0.0901]
[1757382436109,0.7137,4292.7,4292.6,0.8201]
[1757382436811,0.7137,4292.7,4292.6,0.0901]
[1757382436998,0.7137,4292.7,4292.6,0.236]
[1757382437511,0.7022,4292.6,4292.5,0.1954]
[1757382437709,0.7022,4292.6,4292.5,0.4314]
[1757382438006,0.7022,4292.6,4292.5,0.7359]
[1757382438207,0.7022,4292.6,4292.5,0.948]
[1757382439404,0.7022,4292.6,4292.5,0.6435]
[1757382439912,0.7022,4292.6,4292.5,0.4314]
[1757382440905,0.7022,4292.6,4292.5,0.236]
[1757382441111,0.7022,4292.2,4292.1,0.1954]
[1757382441401,0.7022,4292.1,4292.0,0.4314]
[1757382441607,0.7022,4292.1,4292.0,0.948]
[1757382444313,0.4164,4292.0,4291.9,1.38908737]
[1757382444520,0.4964,4292.5,4292.4,0.712]
[1757382444812,0.4964,4292.5,4292.4,1.90568737]
[1757382447016,3.7042,4292.8,4292.7,0.712]
[1757382448409,3.91,4292.8,4292.7,0.712]
[1757382448817,3.91,4292.8,4292.7,0.4075]
[1757382449819,3.91,4292.8,4292.7,0.1954]
[1757382451730,3.91,4292.8,4292.7,0.4999]
[1757382451927,3.91,4292.8,4292.7,0.1954]
[1757382453825,4.146,4292.8,4292.7,0.1954]
[1757382463935,4.08085,4292.8,4292.1,5.11901298]
[1757382464236,4.08085,4292.8,4291.0,0.1285]
[1757382464237,0.4041,4291.7,4291.6,3.2078]
[1757382464538,0.7022,4291.7,4291.6,3.2078]
[1757382465135,0.1183,4291.5,4291.2,1.6787057]
[1757382465336,0.7022,4291.3,4291.2,0.00349272]
[1757382465733,0.7022,4291.3,4291.2,0.19889272]
[1757382467337,0.7022,4291.3,4291.2,0.00349272]
[1757382470443,0.9382,4291.3,4291.2,0.00349272]
[1757382472842,0.7022,4291.3,4291.2,0.00349272]
[1757382473139,0.7022,4291.3,4291.2,0.21769272]
[1757382473446,0.4415,4291.4,4291.3,0.7221]
[1757382473635,0.7498,4291.4,4291.3,2.22727234]
[1757382474242,0.9507,4291.4,4291.3,0.7221]
[1757382474438,0.9507,4291.4,4291.2,0.00349272]
[1757382477242,0.1256,4291.0,4290.6,3.2078]
[1757382477445,0.1256,4291.0,4290.1,1.67521298]
[1757382477446,0.3083,4290.3,4290.1,3.2078]
[1757382477748,0.7147,4290.2,4290.1,3.9299]
[1757382482748,0.5138,4290.2,4290.1,5.43507234]
[1757382483251,0.7147,4290.2,4290.1,3.9299]
[1757382485754,0.7147,4290.2,4290.1,3.422]
[1757382486262,0.7147,4290.2,4290.1,3.2078]
[1757382486454,0.7147,4289.9,4289.4,0.3092]
[1757382486657,0.7147,4289.9,4289.8,0.2142]
[1757382487459,0.7147,4289.9,4289.8,0.7221]
[1757382490854,0.7147,4289.9,4289.8,0.2142]
[1757382491162,0.4339,4289.5,4289.4,0.2142]
[1757382491353,0.8403,4289.5,4289.4,0.2142]
[1757382491555,0.8403,4289.5,4289.4,0.5234]
[1757382493064,0.8403,4289.5,4289.4,0.7221]
[1757382493459,0.1256,4290.0,4289.5,0.3092]
[1757382493762,0.532,4290.0,4289.9,0.2142]
[1757382494065,0.8403,4290.0,4289.9,0.7221]
[1757382494260,0.8403,4290.0,4289.9,0.4129]
[1757382494261,0.2055,4290.0,4289.9,0.4129]
[1757382494459,0.5138,4290.0,4289.9,0.4129]
[1757382494661,0.236,4290.9,4290.5,0.5386]
[1757382494861,0.3083,4290.8,4290.5,0.8478]
[1757382495061,3.7216,4290.6,4290.5,0.8478]
[1757382495759,3.7216,4290.6,4290.5,0.7221]
[1757382496267,3.9225,4290.6,4290.5,0.7221]
[1757382498062,3.9225,4290.6,4290.1,0.3208]
[1757382498266,0.4002,4289.9,4289.8,0.4469]
[1757382498467,0.7219,4289.9,4289.8,0.4469]
[1757382498666,0.7219,4289.9,4289.8,0.2109]
[1757382498869,0.3217,4289.8,4289.3,3.7646]
[1757382499163,0.7219,4289.4,4289.3,5.53781298]
[1757382499373,0.5256,4289.4,4289.3,4.1834]
[1757382499664,0.2039,4289.4,4289.3,4.1834]
[1757382501565,0.5256,4289.4,4289.3,4.1834]
[1757382502567,0.7219,4289.4,4289.3,4.1834]
[1757382505869,0.7219,4289.4,4289.3,3.6547]
[1757382506062,0.7219,4289.4,4289.0,0.3208]
[1757382506268,0.4002,4288.9,4288.8,0.6548]
[1757382506565,0.2039,4288.9,4288.8,2.15997234]
[1757382506760,0.3217,4289.4,4288.9,0.3208]
[1757382506967,0.3217,4289.4,4288.8,2.15997234]
[1757382506968,0.7219,4289.4,4289.3,0.7396]
[1757382507366,0.7219,4289.4,4289.3,0.4188]
[1757382509973,0.7219,4289.4,4289.3,0.7396]
[1757382511571,3.21129683,4289.6,4289.5,0.1231]
[1757382511572,3.44729683,4289.6,4289.5,0.1231]
[1757382511874,0.23949683,4289.6,4289.5,0.8627]
[1757382512974,0.00349683,4289.6,4289.5,0.8627]
[1757382514272,0.52909683,4289.6,4289.5,0.7396]
[1757382514878,0.7219,4289.2,4289.1,0.9756]
[1757382516578,0.2039,4289.2,4289.1,0.7396]
[1757382516780,0.1206,4289.5,4289.1,0.4188]
[1757382516981,0.8425,4289.5,4289.4,0.4188]
[1757382517177,0.8425,4289.5,4289.4,0.7396]
[1757382518681,0.7219,4289.5,4289.4,0.7396]
[1757382518882,0.8425,4289.5,4289.4,0.7396]
[1757382520276,0.7219,4289.5,4289.4,0.7396]
[1757382520484,0.00349683,4289.6,4289.5,0.8627]
[1757382520682,0.00349683,4289.6,4289.5,2.05900623]
[1757382522790,0.52909683,4289.6,4289.5,2.05900623]
[1757382523172,0.20739683,4289.6,4289.5,2.05900623]
[1757382523383,0.00349683,4289.6,4289.5,2.05900623]
[1757382523783,0.00349683,4289.6,4289.5,5.26680623]
[1757382524383,3.7334,4290.6,4290.5,0.4188]
[1757382524585,3.9297,4290.6,4290.5,0.7396]
[1757382526687,3.4438,4291.2,4290.5,0.5476]
[1757382526987,0.7012,4290.7,4290.6,0.4095]
[1757382527683,0.7012,4290.7,4290.6,0.7301]
[1757382530688,0.7012,4290.7,4290.6,0.4095]
[1757382531386,0.7012,4290.7,4290.6,0.7301]
[1757382540796,1.32190623,4291.0,4290.6,0.7301]
[1757382541092,1.32190623,4291.0,4290.3,0.236]
[1757382541093,0.7012,4291.0,4290.9,1.92640623]
[1757382541298,0.8194,4291.0,4290.9,0.207]
[1757382542096,0.8194,4291.0,4290.9,0.5276]
[1757382542990,0.8194,4291.0,4290.9,0.207]
[1757382544402,0.8194,4291.0,4290.6,1.51690623]
[1757382544599,0.3915,4290.6,4290.5,0.443]
[1757382544897,0.7012,4290.6,4290.5,0.443]
[1757382545694,0.7012,4290.6,4290.5,0.207]
[1757382545999,0.3915,4290.4,4290.3,0.5276]
[1757382546199,0.7012,4290.4,4290.3,0.5276]
[1757382547600,0.7012,4290.4,4290.3,0.7301]
[1757382547996,0.7012,4290.4,4290.3,0.4095]
[1757382548203,0.7012,4289.9,4289.8,1.40330623]
[1757382548398,0.7012,4289.9,4289.8,1.63930623]
[1757382548705,3.326,4290.0,4289.5,0.443]
[1757382548901,0.7012,4289.6,4289.5,0.9661]
[1757382549199,0.7012,4289.6,4289.4,3.2078]
[1757382549394,0.7012,4289.4,4289.3,0.00349683]
[1757382549992,0.3097,4288.4,4288.3,3.2078]
[1757382550200,0.7012,4288.4,4288.3,3.2078]
[1757382550400,0.5049,4288.4,4288.3,5.13420623]
[1757382550608,0.7012,4288.9,4288.8,0.7301]
[1757382551197,0.7012,4288.9,4288.8,0.4095]
[1757382555104,0.7012,4288.9,4288.5,0.3206]
[1757382555609,0.3097,4288.8,4288.4,1.19630623]
[1757382555806,0.7012,4288.8,4288.7,0.207]
[1757382558004,0.7012,4288.8,4288.3,3.5144]
[1757382558211,0.5095,4288.4,4288.3,3.6181]
[1757382558721,0.7201,4288.4,4288.3,3.9247]
[1757382559311,0.5095,4288.4,4288.3,3.9247]
[1757382559807,0.7201,4288.4,4288.3,3.9247]
[1757382560010,0.7201,4288.4,4288.3,4.1607]
[1757382561106,0.5095,4288.4,4288.3,4.1607]
[1757382562113,0.7201,4288.4,4288.3,4.1607]
[1757382562305,0.5095,4288.4,4288.3,4.1607]
[1757382563216,0.7201,4288.4,4288.3,4.1607]
[1757382564103,0.5095,4288.4,4288.3,4.1607]
[1757382565313,3.9279,4288.8,4288.7,0.7169]
[1757382566714,3.9279,4288.8,4288.7,0.4103]
[1757382566915,3.9279,4288.8,4288.7,0.7169]
[1757382568514,3.9279,4288.8,4288.4,0.3066]
[1757382568711,3.6331,4288.8,4288.7,0.1963]
[1757382568913,0.8415,4288.0,4287.9,0.1963]
[1757382569111,2.03780623,4288.0,4287.6,0.3066]
[1757382569417,1.74300623,4288.0,4287.5,0.5426]
[1757382569615,0.7201,4287.6,4287.5,0.7389]
[1757382570107,0.7201,4287.6,4287.5,0.5029]
[1757382570312,0.7201,4287.6,4287.5,0.7389]
[1757382570512,0.7201,4287.6,4287.5,0.9529]
[1757382571122,0.2948,4287.9,4287.5,0.7666]
[1757382571311,1.31770623,4288.0,4287.9,0.5029]
[1757382571312,0.5467,4288.0,4287.9,0.5029]
[1757382571810,0.8415,4288.0,4287.9,0.5029]
[1757382572121,0.4253,4287.4,4287.3,3.4041]
[1757382572319,1.31770623,4288.0,4287.3,3.9247]
[1757382572521,1.74300623,4288.0,4287.9,0.1963]
[1757382573020,2.03780623,4288.0,4287.9,0.1963]
[1757382573414,0.8415,4288.0,4287.9,0.1963]
[1757382573718,0.8415,4288.0,4287.9,0.5029]
[1757382574315,0.8415,4288.0,4287.9,0.7169]
[1757382575823,0.8415,4288.0,4287.4,1.19630623]
[1757382575824,0.5095,4287.4,4287.3,3.9247]
[1757382576024,0.5095,4287.4,4287.3,4.1607]
[1757382576717,0.5467,4288.0,4287.9,0.1963]
[1757382577116,0.5467,4288.0,4287.7,0.3066]
[1757382577420,0.7201,4287.8,4287.7,0.5029]
[1757382578422,0.2948,4287.3,4287.1,0.3066]
[1757382578724,0.7201,4287.2,4287.1,0.1963]
[1757382578922,0.7201,4287.2,4286.8,3.7504]
[1757382578923,0.1214,4287.0,4286.8,3.2078]
[1757382579121,0.8415,4286.5,4286.4,0.1963]
[1757382579421,0.8415,4286.5,4286.4,0.5029]
[1757382579622,0.8415,4286.5,4286.4,0.7169]
[1757382579815,0.8415,4287.0,4286.9,0.7169]
[1757382581219,0.7201,4287.0,4286.9,0.7169]
[1757382581614,0.5095,4287.0,4286.9,0.7169]
[1757382581929,0.7201,4287.1,4287.0,0.5029]
[1757382582225,3.2078,4287.3,4287.2,0.4103]
[1757382582419,3.4225,4287.3,4287.2,0.7169]
[1757382582621,3.7173,4287.3,4287.2,0.7169]
[1757382583314,3.9279,4287.3,4287.2,0.7169]
[1757382583716,3.5026,4287.3,4287.2,0.7169]
[1757382583920,0.2147,4287.4,4287.3,0.3066]
[1757382584120,0.5095,4287.4,4287.3,0.7169]
[1757382590423,0.7103,4287.4,4287.3,0.7169]
[1757382592730,0.5095,4287.4,4287.3,0.7169]
[1757382594032,0.00349683,4287.6,4287.5,0.8421]
[1757382594227,0.00349683,4287.6,4287.5,4.0499]
[1757382594428,0.00349683,4287.6,4287.5,5.55910746]
[1757382594830,0.00349683,4287.6,4287.5,4.0499]
[1757382595634,0.51669683,4287.6,4287.5,4.0499]
[1757382596732,0.71749683,4287.6,4287.5,0.4423]
[1757382597132,0.71749683,4287.6,4287.5,0.2063]
[1757382597831,0.4132,4287.3,4287.2,0.4423]
[1757382598035,0.714,4287.3,4287.2,0.9513]
[1757382599628,0.00349683,4287.6,4287.4,0.4076]
[1757382599840,0.00349683,4287.6,4287.5,0.8421]
[1757382600135,0.51669683,4287.6,4287.5,0.7153]
[1757382600331,0.71749683,4287.6,4287.5,0.2063]
[1757382600534,0.71749683,4287.6,4287.5,0.4423]
[1757382600841,0.71749683,4287.6,4287.5,0.9513]
[1757382601439,0.71749683,4287.6,4287.5,0.7153]
[1757382601638,0.71749683,4287.6,4287.5,0.4076]
[1757382602539,0.71749683,4287.6,4287.5,0.7153]
[1757382603332,0.51669683,4287.6,4287.5,0.7153]
[1757382605641,0.71749683,4287.6,4287.5,0.7153]
[1757382606043,0.00349683,4287.6,4287.5,0.8421]
[1757382606644,0.51669683,4287.6,4287.5,0.8421]
[1757382606834,0.51669683,4287.6,4287.5,0.7153]
[1757382607238,0.71749683,4287.6,4287.5,0.2063]
[1757382607440,0.71749683,4287.6,4287.2,0.3077]
[1757382607648,0.714,4287.3,4287.2,0.514]
[1757382607943,0.714,4287.3,4287.2,0.9513]
[1757382608947,0.714,4287.3,4287.2,0.4076]
[1757382609150,0.714,4287.3,4287.2,0.2063]
[1757382609335,0.714,4287.3,4287.2,0.4423]
[1757382610744,0.4132,4287.3,4287.2,0.236]
[1757382611346,0.8312,4287.0,4286.9,5.39701298]
[1757382611540,0.8312,4287.0,4286.9,5.63301298]
[1757382611945,0.714,4287.0,4286.9,5.83431298]
[1757382613048,0.8312,4287.0,4286.9,3.6501]
[1757382613247,0.8312,4287.0,4286.9,3.9578]
[1757382613548,0.8312,4287.0,4286.9,4.1591]
[1757382614548,0.8312,4287.0,4286.9,3.9231]
[1757382614738,0.8312,4287.0,4286.9,4.1591]
[1757382615045,0.714,4287.0,4286.9,4.1591]
[1757382616439,0.5132,4287.0,4286.9,4.1591]
[1757382620261,0.3255,4287.5,4287.4,0.4082]
[1757382620465,0.5041,4287.5,4287.4,0.7104]
[1757382620765,0.29929683,4287.6,4287.5,0.119]
[1757382620969,0.00349683,4287.6,4287.5,0.8294]
[1757382622770,3.2078,4288.4,4288.3,0.7104]
[1757382622959,0.2958,4288.7,4288.3,0.6442]
[1757382623160,0.2958,4288.7,4288.6,0.7104]
[1757382623469,0.7058,4288.7,4288.6,0.9464]
[1757382624660,0.5041,4288.7,4288.6,0.9464]
[1757382625655,0.2958,4289.5,4289.0,0.5272]
[1757382625861,3.2078,4290.2,4289.6,0.4082]
[1757382626061,3.2078,4290.2,4290.0,0.8294]
[1757382626261,3.7119,4290.2,4290.1,0.7104]
[1757382626469,3.9136,4290.2,4290.1,0.7104]
[1757382627169,3.9136,4290.2,4290.1,0.1963]
[1757382627365,3.9136,4290.2,4290.1,0.4323]
[1757382630068,3.9136,4290.2,4290.1,0.1963]
[1757382631772,3.9136,4290.2,4290.1,0.7104]
[1757382633774,3.2078,4290.9,4290.1,0.7104]
[1757382634067,0.5041,4290.3,4290.0,0.354]
[1757382634267,0.2083,4290.3,4290.2,0.4082]
[1757382634468,0.41,4290.3,4290.2,0.4082]
[1757382634670,0.41,4290.3,4290.2,0.7104]
[1757382634870,0.7058,4290.3,4290.2,0.7104]
[1757382636075,0.7058,4290.3,4290.2,0.1963]
[1757382636474,0.7058,4290.3,4290.2,0.4985]
[1757382636872,0.7058,4290.3,4290.2,0.7335]
[1757382637571,0.7058,4290.3,4290.2,0.4313]
[1757382637773,0.7058,4290.3,4289.9,0.3022]
[1757382638079,0.8294,4290.0,4289.9,0.4313]
[1757382640775,0.8294,4290.0,4289.2,1.50920746]
[1757382640974,0.7058,4289.4,4289.3,0.4985]
[1757382641274,0.7058,4289.4,4289.3,0.4313]
[1757382641483,0.41,4289.4,4289.0,3.51]
[1757382641777,0.7058,4289.1,4289.0,3.7063]
[1757382641973,0.7058,4289.1,4289.0,4.1532]
[1757382642470,0.2958,4289.4,4289.1,0.3022]
[1757382642676,0.2958,4289.4,4289.0,4.75825156]
[1757382642677,0.7058,4289.4,4289.3,1.90685156]
[1757382643076,0.7058,4289.4,4289.3,1.39275156]
[1757382643276,0.7058,4289.4,4289.3,0.235]
[1757382645384,0.7058,4289.4,4289.3,0.4313]
[1757382645881,0.7058,4289.4,4289.3,0.7335]
[1757382646376,0.7058,4289.4,4289.3,0.4985]
[1757382646782,0.7058,4289.4,4289.3,0.7104]
[1757382646979,0.7058,4289.4,4289.3,0.1963]
[1757382647179,0.3121,4289.3,4289.2,0.235]
[1757382647478,0.4206,4289.1,4289.0,3.2078]
[1757382647684,0.1236,4289.5,4288.2,0.00349683]
[1757382647685,0.8544,4288.5,4288.4,1.59195156]
[1757382647877,0.8544,4288.5,4288.4,2.12915156]
[1757382648383,0.7327,4288.5,4288.4,2.12915156]
[1757382648778,0.5423,4288.5,4288.3,3.2078]
[1757382648985,0.7327,4288.4,4288.3,3.4037]
[1757382649285,0.7327,4288.4,4288.3,3.9409]
[1757382649481,0.7327,4288.4,4288.3,4.1405]
[1757382650585,0.7327,4288.4,4288.3,3.9055]
[1757382650784,0.7327,4288.4,4288.3,3.8383]
[1757382651184,0.3121,4288.7,4288.3,4.1405]
[1757382651384,0.52,4288.7,4288.6,1.89415156]
[1757382651689,0.52,4288.7,4288.6,2.12915156]
[1757382652389,0.1217,4289.0,4288.6,2.12915156]
[1757382652590,0.7327,4288.8,4288.7,0.3022]
[1757382652795,0.7327,4288.8,4288.4,1.49865156]
[1757382652796,0.1217,4288.5,4288.4,1.49865156]
[1757382653090,0.7327,4288.5,4288.4,2.12915156]
[1757382653988,0.3121,4288.9,4288.4,1.82695156]
[1757382654189,0.7327,4289.0,4288.9,0.6977]
[1757382657589,0.52,4289.0,4288.9,0.6977]
[1757382657896,0.52,4289.2,4289.1,0.6977]
[1757382658088,0.7327,4289.2,4289.1,0.6977]
[1757382659898,0.7327,4289.2,4289.1,1.89415156]
[1757382662298,0.7327,4289.2,4289.1,0.6977]
[1757382665598,0.52,4289.2,4289.1,0.6977]
[1757382666400,0.3121,4289.5,4289.2,0.3022]
[1757382666698,0.3121,4289.6,4289.3,0.3022]
[1757382666998,0.52,4289.4,4289.3,0.6977]
[1757382667198,1.05073723,4289.4,4289.3,0.6977]
[1757382667400,1.26343723,4289.4,4289.3,0.6977]
[1757382667898,0.7327,4289.4,4289.3,0.6977]
[1757382669198,3.5199,4289.9,4289.4,0.3022]
[1757382669401,0.3121,4289.9,4289.7,0.6977]
[1757382669602,0.3121,4289.9,4289.8,0.3022]
[1757382669798,3.2078,4290.4,4289.8,0.3022]
[1757382669799,0.3121,4290.3,4289.9,0.3022]
[1757382669999,0.3121,4290.8,4290.3,0.3022]
[1757382670296,0.7327,4290.8,4290.3,0.3022]
[1757382670495,0.3344,4290.5,4290.4,0.1959]
[1757382670695,0.5423,4290.5,4290.4,0.6977]
[1757382670899,1.07350096,4290.5,4290.4,0.6977]
[1757382671093,0.3121,4290.4,4289.6,0.3022]
[1757382671397,1.07350096,4290.5,4289.7,0.9327]
[1757382671398,0.7327,4289.8,4289.7,0.9327]
[1757382671603,0.3121,4290.2,4289.7,1.82695156]
[1757382671801,0.73905419,4290.1,4290.0,0.3955]
[1757382672103,1.26385419,4290.1,4290.0,0.6977]
[1757382672501,1.26385419,4290.1,4290.0,0.3955]
[1757382673499,1.26385419,4290.1,4290.0,0.6977]
[1757382674203,0.7327,4290.1,4290.0,0.6977]
[1757382674403,0.2079,4290.7,4290.6,0.3955]
[1757382674609,0.53083965,4290.8,4290.6,5.03475156]
[1757382674898,3.2078,4291.4,4290.6,5.03475156]
[1757382674899,2.67696035,4291.4,4291.3,0.6977]
[1757382675101,0.3121,4291.9,4291.3,2.12915156]
[1757382675397,0.2079,4291.9,4291.8,1.89415156]
[1757382675605,0.2079,4291.9,4291.8,2.12915156]
[1757382675802,0.52,4291.9,4291.8,2.12915156]
[1757382677805,0.7327,4291.9,4291.8,0.9327]
[1757382678599,0.7327,4291.9,4291.4,0.3106]
[1757382678896,0.692,4291.6,4291.5,0.4447]
[1757382679304,0.692,4291.6,4291.5,0.9615]
[1757382679697,0.692,4291.6,4291.5,0.4159]
[1757382679894,0.1209,4291.5,4291.1,3.2078]
[1757382680094,0.692,4291.2,4291.1,3.4175]
[1757382680302,0.692,4291.2,4291.1,3.6525]
[1757382680496,0.692,4291.2,4291.1,0.4447]
[1757382681506,0.692,4291.2,4291.1,0.7553]
[1757382681714,0.692,4291.2,4291.1,0.9615]
[1757382684813,0.692,4290.7,4290.6,3.4175]
[1757382685006,0.692,4290.7,4290.0,0.1276]
[1757382685007,0.1209,4290.5,4290.0,3.2078]
[1757382685200,0.3992,4290.1,4290.0,3.2078]
[1757382685507,0.3992,4289.8,4289.7,0.2097]
[1757382685708,0.2928,4289.7,4289.5,3.2078]
[1757382685903,0.692,4289.6,4289.5,4.1693]
[1757382686103,0.692,4289.6,4289.5,3.8587]
[1757382686304,0.692,4289.6,4289.5,4.1693]
[1757382687204,0.2981,4289.6,4289.5,4.298]
[1757382687406,0.1989,4289.6,4289.5,4.298]
[1757382687605,0.1989,4289.6,4289.5,3.9874]
[1757382688003,0.3992,4289.6,4289.5,0.7796]
[1757382688303,0.692,4289.6,4289.5,1.0902]
[1757382688901,0.1989,4289.6,4289.5,1.0902]
[1757382689106,0.692,4289.6,4289.5,1.0902]
[1757382689302,0.3992,4289.6,4289.5,1.0902]
[1757382689515,0.692,4290.0,4289.9,0.4159]
[1757382689714,0.692,4290.0,4289.9,0.7265]
[1757382692119,0.3992,4290.0,4289.9,0.7265]
[1757382693716,0.692,4290.0,4289.9,0.5203]
[1757382694215,0.1989,4290.0,4289.9,0.7265]
[1757382694617,0.692,4290.0,4289.9,0.7265]
[1757382696822,0.3992,4290.0,4289.9,0.7265]
[1757382697015,0.692,4290.0,4289.9,0.7265]
[1757382698724,0.3992,4290.0,4289.9,0.7265]
[1757382699419,0.8039,4290.0,4289.5,0.1287]
[1757382699721,0.692,4289.7,4289.6,0.80529843]
[1757382701822,0.692,4289.7,4289.6,0.7265]
[1757382702411,0.692,4289.7,4289.6,0.5203]
[1757382702911,0.692,4289.7,4289.3,0.3106]
[1757382703115,0.692,4289.7,4289.4,0.28496312]
[1757382703314,0.2928,4289.6,4289.5,0.59556312]
[1757382703516,0.692,4289.6,4289.5,1.14016312]
[1757382703811,0.2928,4289.9,4289.5,0.82956312]
[1757382704017,0.92511,4290.2,4290.1,0.2097]
[1757382704218,0.92511,4290.2,4290.1,0.5203]
[1757382704817,0.692,4290.2,4289.6,0.3106]
[1757382708423,0.692,4290.2,4290.1,0.7227]